bitfinex-derivatives/quotes_SOLF0:USTF0_20250630
["timestamp","ask_amount","ask_price","bid_price","bid_amount"]
[1751320494526,4.4576,155.7,155.64,47.44]
[1751320494724,2.25359494,155.72,155.64,47.44]
[1751320494921,2.25359494,155.72,155.65,3.67716554]
[1751320495127,5.93076048,155.77,155.67,3.67716554]
[1751320495324,7.90521098,155.82,155.65,2.2891]
[1751320495325,3.67716554,155.75,155.65,2.2891]
[1751320495526,3.67716554,155.75,155.65,5.96626554]
[1751320495932,6.4204,155.72,155.67,6.422]
[1751320496429,3.67716554,155.73,155.65,2.2891]
[1751320496730,6.4211,155.7,155.65,8.7118]
[1751320497427,6.4204,155.72,155.65,2.2891]
[1751320497630,6.4204,155.72,155.66,3.67716554]
[1751320498030,6.4204,155.72,155.67,6.4219]
[1751320499132,6.4206,155.71,155.67,6.4219]
[1751320499734,6.4206,155.71,155.66,6.4225]
[1751320500635,3.67716554,155.74,155.65,8.712]
[1751320500833,6.4028,155.76,155.65,8.712]
[1751320501034,3.67716554,155.73,155.65,8.712]
[1751320501838,3.67716554,155.73,155.66,6.4225]
[1751320502539,6.4212,155.7,155.66,6.4225]
[1751320504738,6.4216,155.69,155.65,8.7121]
[1751320505632,6.4211,155.7,155.66,6.4226]
[1751320506633,6.4207,155.71,155.67,6.422]
[1751320507445,6.4203,155.72,155.68,6.4217]
[1751320507741,6.4203,155.72,155.69,46.62]
[1751320509238,3.67716554,155.75,155.69,53.0412]
[1751320509239,6.4199,155.73,155.69,53.0412]
[1751320509644,6.4199,155.73,155.69,46.62]
[1751320509844,6.4194,155.74,155.7,6.4207]
[1751320511045,6.4028,155.76,155.7,6.4207]
[1751320511046,10.07996554,155.76,155.7,6.4207]
[1751320511547,6.4196,155.74,155.7,6.4207]
[1751320512941,6.419,155.75,155.71,6.4205]
[1751320513549,6.4187,155.76,155.72,6.4199]
[1751320513849,5.95976554,155.79,155.71,3.67716554]
[1751320514051,6.4179,155.78,155.74,6.4191]
[1751320514346,6.4179,155.78,155.74,53.0391]
[1751320514546,6.4174,155.79,155.75,6.4187]
[1751320514747,6.4174,155.79,155.74,46.62]
[1751320514748,3.67716554,155.79,155.74,46.62]
[1751320515137,6.4185,155.76,155.74,46.62]
[1751320515344,3.67716554,155.79,155.74,46.62]
[1751320515543,6.4184,155.77,155.74,46.62]
[1751320515847,4.4792,155.83,155.7,46.62]
[1751320516146,6.4187,155.76,155.7,46.62]
[1751320516745,3.67716554,155.79,155.72,6.4198]
[1751320517249,6.4177,155.78,155.71,3.67716554]
[1751320517451,3.67716554,155.82,155.73,3.67716554]
[1751320517855,6.417,155.8,155.76,6.4182]
[1751320518150,8.15636554,155.83,155.76,46.62]
[1751320518545,6.4167,155.81,155.77,6.4178]
[1751320519148,6.417,155.8,155.76,53.0383]
[1751320519546,3.67716554,155.82,155.76,53.0383]
[1751320520750,6.4173,155.79,155.76,53.0383]
[1751320521740,46.62,155.87,155.76,50.29716554]
[1751320521946,4.5344,155.86,155.79,3.67716554]
[1751320522151,141.46666024,155.93,155.81,3.67716554]
[1751320522152,3.67716554,155.9,155.81,3.67716554]
[1751320522352,10.8218,155.91,155.85,6.4145]
[1751320522647,10.8218,155.91,155.83,3.67716554]
[1751320522950,10.8218,155.91,155.87,6.4139]
[1751320523453,10.8218,155.91,155.86,6.4141]
[1751320523653,10.8218,155.91,155.83,3.67716554]
[1751320523846,10.08916554,155.92,155.83,3.67716554]
[1751320524347,3.37360142,155.98,155.89,3.67716554]
[1751320524545,2.257,155.98,155.92,6.4116]
[1751320524952,6.4101,155.97,155.92,6.4116]
[1751320525256,6.4101,155.97,155.91,6.4121]
[1751320525751,6.4101,155.97,155.92,6.4118]
[1751320526140,8.6666,155.98,155.9,50.27716554]
[1751320526341,7.90386554,155.99,155.94,3.67716554]
[1751320526342,4.2267,155.99,155.94,3.67716554]
[1751320526643,3.67716554,156.03,155.95,46.6]
[1751320527253,6.4086,156.0,155.95,46.6]
[1751320528654,6.4086,156.0,155.96,6.4102]
[1751320529243,7.75394637,156.07,155.95,46.6]
[1751320529449,3.67716554,156.11,156.03,3.67716554]
[1751320529646,46.58,156.18,156.04,46.58]
[1751320529647,4.223,156.14,156.04,46.58]
[1751320529849,7.90016554,156.14,156.04,46.58]
[1751320530048,4.223,156.14,156.07,3.67716554]
[1751320530354,4.223,156.14,156.1,6.4044]
[1751320530549,4.223,156.14,156.11,46.56]
[1751320530955,10.626,156.14,156.11,46.56]
[1751320531847,4.223,156.14,156.11,46.56]
[1751320532250,46.56,156.33,156.13,5.51367224]
[1751320532455,4.3187,156.28,156.18,5.51367224]
[1751320532658,4.3187,156.28,156.23,6.3989]
[1751320532957,10.7159,156.28,156.24,46.56]
[1751320533650,6.3972,156.28,156.24,46.56]
[1751320533957,6.3968,156.29,156.24,46.56]
[1751320534455,6.3968,156.29,156.24,52.9586]
[1751320535556,6.3968,156.29,156.24,46.56]
[1751320535752,7.78357224,156.32,156.24,46.56]
[1751320536452,6.3973,156.28,156.24,46.56]
[1751320538256,1.11404562,156.34,156.26,5.51367224]
[1751320538456,12.00527224,156.41,156.3,5.51367224]
[1751320538655,12.00527224,156.41,156.32,5.51367224]
[1751320538855,12.00527224,156.41,156.33,46.94]
[1751320539055,6.3923,156.4,156.33,53.3348]
[1751320539358,12.00527224,156.41,156.33,46.94]
[1751320539657,6.3926,156.4,156.34,6.3943]
[1751320540661,6.4916,156.41,156.33,53.3348]
[1751320541464,6.3927,156.39,156.33,53.3348]
[1751320542562,6.3939,156.37,156.33,46.94]
[1751320543355,6.3932,156.38,156.33,46.94]
[1751320544460,6.3927,156.39,156.34,6.3946]
[1751320545561,6.4916,156.41,156.33,53.335]
[1751320546062,6.3934,156.38,156.33,53.335]
[1751320547863,6.3936,156.37,156.33,46.94]
[1751320548162,5.51367224,156.4,156.33,46.94]
[1751320548359,6.3937,156.37,156.33,46.94]
[1751320548762,5.51367224,156.4,156.33,46.94]
[1751320549467,5.51367224,156.38,156.28,46.86]
[1751320549664,5.51367224,156.36,156.28,46.86]
[1751320549965,5.51367224,156.34,156.28,46.86]
[1751320550156,5.51367224,156.34,156.24,553.68]
[1751320550463,5.51367224,156.34,156.25,46.86]
[1751320550667,6.3974,156.28,156.25,46.86]
[1751320551059,6.3974,156.28,156.08,382.621]
[1751320551257,5.51367224,156.26,156.16,52.37367224]
[1751320551463,5.51367224,156.24,156.16,46.86]
[1751320551770,6.4016,156.17,156.16,46.86]
[1751320552756,5.51367224,156.18,156.12,552.82]
[1751320553363,6.403,156.14,156.12,552.82]
[1751320556369,6.4033,156.13,156.12,552.82]
[1751320556758,6.4033,156.13,156.1,46.86]
[1751320559765,6.4033,156.13,156.02,6.4575]
[1751320559766,5.51367224,156.11,155.95,12.8206]
[1751320559968,52.39367224,156.15,155.98,9.68427224]
[1751320560267,6.406,156.07,156.02,6.4078]
[1751320560564,5.51367224,156.09,155.99,46.88]
[1751320560766,6.4065,156.06,156.01,6.4079]
[1751320560974,19.3329,156.14,155.99,46.88]
[1751320561265,5.51367224,156.05,155.99,46.88]
[1751320561472,6.4073,156.04,155.99,46.88]
[1751320562070,6.407,156.04,155.99,46.88]
[1751320562671,5.51367224,156.05,155.99,46.88]
[1751320563261,6.4064,156.06,156.01,6.4078]
[1751320564565,6.4064,156.06,156.02,6.4076]
[1751320564765,5.51367224,156.07,155.99,46.88]
[1751320565272,11.91887224,156.09,155.99,46.88]
[1751320565672,11.91887224,156.09,156.04,6.4067]
[1751320567372,5.51367224,156.09,156.04,47.14]
[1751320567673,5.51367224,156.11,156.07,6.4056]
[1751320568771,11.91787224,156.11,156.07,6.4056]
[1751320571976,11.91787224,156.11,156.08,6.4052]
[1751320572281,5.51367224,156.09,156.01,47.14]
[1751320572580,5.51367224,156.06,156.02,6.4075]
[1751320572772,11.92007224,156.06,156.02,6.4075]
[1751320572972,5.51367224,156.06,156.02,6.4075]
[1751320573173,5.51367224,156.07,156.03,6.4074]
[1751320573578,5.51367224,156.07,156.01,47.14]
[1751320574484,5.51367224,156.07,156.01,53.5481]
[1751320575172,6.4071,156.04,156.01,53.5481]
[1751320575373,6.4071,156.04,156.01,47.14]
[1751320575575,5.51367224,156.05,156.01,47.14]
[1751320575779,5.51367224,156.05,155.97,602.5176]
[1751320575982,5.51367224,156.03,155.97,600.26]
[1751320576180,6.4084,156.01,155.97,600.26]
[1751320576376,5.51367224,156.03,155.97,600.26]
[1751320576574,5.51367224,156.01,155.9,2.1214]
[1751320576779,5.51367224,155.99,155.92,47.14]
[1751320577080,6.4101,155.97,155.93,6.4113]
[1751320577580,6.4107,155.95,155.92,47.14]
[1751320577782,5.51367224,155.95,155.89,553.56]
[1751320578483,5.51367224,155.93,155.88,47.14]
[1751320578683,6.4126,155.91,155.88,47.14]
[1751320578879,5.51367224,155.93,155.88,47.14]
[1751320579184,6.4131,155.89,155.88,47.14]
[1751320579389,5.51367224,155.91,155.83,47.14]
[1751320579585,47.14,155.94,155.79,47.14]
[1751320579788,5.51367224,155.87,155.79,47.14]
[1751320579976,5.51367224,155.85,155.79,47.14]
[1751320580176,5.51367224,155.8,155.73,553.68]
[1751320580394,5.51367224,155.75,155.7,45.0]
[1751320580682,5.51367224,155.73,155.7,45.0]
[1751320581089,6.4202,155.72,155.7,45.0]
[1751320581290,5.51367224,155.73,155.7,45.0]
[1751320581485,5.51367224,155.71,155.66,47.16]
[1751320581885,9.44123103,155.72,155.66,47.16]
[1751320582582,47.16,155.76,155.62,47.16]
[1751320582583,9.44123103,155.69,155.62,47.16]
[1751320582778,6.4221,155.68,155.62,53.5841]
[1751320583191,9.44123103,155.66,155.62,53.5841]
[1751320583592,9.44123103,155.66,155.62,47.16]
[1751320584388,6.4218,155.68,155.62,47.16]
[1751320584586,9.44123103,155.67,155.62,47.16]
[1751320584992,2.1331,155.71,155.62,47.16]
[1751320584993,9.44123103,155.7,155.62,47.16]
[1751320585394,9.44123103,155.72,155.62,47.16]
[1751320585788,47.16,155.76,155.62,47.16]
[1751320586087,9.44123103,155.75,155.63,9.44123103]
[1751320586295,9.44123103,155.75,155.64,129.98]
[1751320586797,9.44123103,155.77,155.66,9.44123103]
[1751320586990,9.44123103,155.77,155.67,47.2]
[1751320587190,15.85933103,155.77,155.71,6.4202]
[1751320587388,15.85933103,155.77,155.72,47.22]
[1751320588189,6.4186,155.76,155.72,47.22]
[1751320592391,15.85933103,155.77,155.72,53.64]
[1751320592993,9.44123103,155.77,155.73,6.4197]
[1751320593694,9.44123103,155.8,155.72,47.22]
[1751320593996,9.44123103,155.8,155.73,2.1959]
[1751320594396,9.44123103,155.83,155.73,2.1959]
[1751320595098,6.416,155.82,155.77,6.4177]
[1751320595300,6.416,155.82,155.78,47.22]
[1751320595896,9.44123103,155.83,155.78,47.22]
[1751320596395,9.44123103,155.8,155.74,47.28]
[1751320596903,9.44123103,155.77,155.72,47.28]
[1751320597599,6.4195,155.74,155.72,47.28]
[1751320597904,6.4195,155.74,155.7,2.2298]
[1751320598110,6.4205,155.72,155.69,599.6]
[1751320598406,9.44123103,155.77,155.69,646.88]
[1751320598806,6.4205,155.72,155.69,646.88]
[1751320599307,6.4207,155.71,155.69,646.88]
[1751320599608,9.44123103,155.74,155.69,646.88]
[1751320599808,6.421,155.7,155.69,646.88]
[1751320600011,9.44123103,155.75,155.7,6.4206]
[1751320600307,9.44123103,155.75,155.69,646.88]
[1751320601101,15.86033103,155.75,155.69,646.88]
[1751320601298,9.44123103,155.78,155.69,646.88]
[1751320601497,9.44123103,155.78,155.7,2.154]
[1751320601696,6.4188,155.76,155.72,6.4198]
[1751320601897,9.44123103,155.78,155.7,2.154]
[1751320602299,15.85773103,155.81,155.7,11.59523103]
[1751320602508,9.44123103,155.81,155.71,2.217]
[1751320603106,9.44123103,155.83,155.71,2.217]
[1751320603313,15.85693103,155.83,155.72,9.44123103]
[1751320603612,9.44123103,155.85,155.72,9.44123103]
[1751320603912,4.4003,155.89,155.72,9.44123103]
[1751320604114,9.44123103,155.87,155.75,9.44123103]
[1751320604307,9.44123103,155.84,155.76,47.3]
[1751320604610,9.44123103,155.84,155.77,47.3]
[1751320605012,6.4177,155.78,155.77,47.3]
[1751320605613,9.44123103,155.84,155.77,47.3]
[1751320605812,9.44123103,155.81,155.77,47.3]
[1751320606013,6.4177,155.78,155.77,47.3]
[1751320619225,11.69331567,155.78,155.77,47.3]
[1751320619427,6.4177,155.78,155.77,47.3]
[1751320619824,11.69331567,155.78,155.77,47.3]
[1751320620025,6.4177,155.78,155.77,47.3]
[1751320620228,11.69331567,155.78,155.77,23.2679274]
[1751320620625,6.4194,155.74,155.73,47.3]
[1751320621227,11.69501567,155.74,155.73,47.3]
[1751320621429,5.27561567,155.74,155.73,47.3]
[1751320621830,5.27561567,155.74,155.7,2.154]
[1751320622025,5.27561567,155.73,155.71,47.3]
[1751320622232,5.27561567,155.72,155.71,47.3]
[1751320623136,11.69571567,155.72,155.71,47.3]
[1751320623927,17.44329781,155.72,155.71,47.3]
[1751320624128,6.421,155.7,155.69,45.0]
[1751320624533,6.421,155.7,155.69,34.2661]
[1751320624729,6.421,155.7,155.69,14.0155]
[1751320624927,6.4218,155.68,155.67,47.3]
[1751320625125,11.96014434,155.68,155.67,47.3]
[1751320625533,5.53834434,155.68,155.63,47.3]
[1751320626531,6.4228,155.66,155.63,47.3]
[1751320627429,6.4228,155.66,155.63,53.7238]
[1751320627628,6.423,155.65,155.63,53.7238]
[1751320627834,6.423,155.65,155.63,47.3]
[1751320628438,6.423,155.66,155.63,53.7238]
[1751320628736,5.53834434,155.68,155.63,53.7238]
[1751320629932,4.40966888,155.71,155.63,53.7238]
[1751320630136,5.53834434,155.67,155.63,53.7238]
[1751320630534,6.4227,155.66,155.63,53.7238]
[1751320630740,5.53834434,155.67,155.63,47.3]
[1751320631036,6.4234,155.65,155.63,47.3]
[1751320631239,5.53834434,155.67,155.63,53.7236]
[1751320631432,5.53834434,155.67,155.63,47.3]
[1751320631634,6.4228,155.66,155.63,47.3]
[1751320632137,5.53834434,155.7,155.64,128.68]
[1751320632343,5.53834434,155.72,155.64,142.68]
[1751320632744,11.95874434,155.72,155.69,6.4211]
[1751320635244,6.4204,155.72,155.69,6.4211]
[1751320635445,5.53834434,155.71,155.68,46.86]
[1751320636437,5.53834434,155.71,155.69,6.4213]
[1751320636842,5.53834434,155.71,155.68,46.86]
[1751320637339,5.53834434,155.71,155.69,6.4214]
[1751320637846,5.53834434,155.71,155.68,46.86]
[1751320638547,5.53834434,155.69,155.68,46.86]
[1751320639146,5.53834434,155.69,155.65,6.4228]
[1751320639545,6.4222,155.67,155.64,67.2832]
[1751320639849,5.53834434,155.72,155.64,60.86]
[1751320640047,2.183,155.73,155.66,6.4223]
[1751320640048,6.4215,155.69,155.66,6.4223]
[1751320640244,6.4215,155.69,155.64,60.86]
[1751320640444,5.53834434,155.7,155.64,60.86]
[1751320641250,5.53834434,155.72,155.64,60.86]
[1751320641452,11.95844434,155.72,155.69,6.4211]
[1751320641651,5.53834434,155.72,155.64,60.86]
[1751320642152,6.4208,155.71,155.64,60.86]
[1751320642354,5.53834434,155.72,155.64,60.86]
[1751320642650,5.53834434,155.68,155.64,60.86]
[1751320643949,6.423,155.65,155.64,60.86]
[1751320645254,6.423,155.65,155.64,14.0]
[1751320650251,6.423,155.65,155.64,4.2177]
[1751320650553,6.4243,155.62,155.61,46.86]
[1751320650750,11.96264434,155.62,155.61,46.86]
[1751320651447,6.4241,155.63,155.61,46.86]
[1751320651654,5.53834434,155.63,155.61,46.86]
[1751320652451,6.4243,155.62,155.61,46.86]
[1751320655656,6.4251,155.61,155.58,6.4257]
[1751320656052,5.53834434,155.61,155.57,57.6547]
[1751320656354,6.4253,155.6,155.57,55.4856]
[1751320657152,6.4259,155.58,155.57,46.88]
[1751320658957,11.96394434,155.59,155.57,46.88]
[1751320659553,6.4259,155.58,155.57,46.88]
[1751320659855,5.53834434,155.59,155.57,46.88]
[1751320660259,5.53834434,155.61,155.57,46.88]
[1751320660552,5.53834434,155.63,155.57,46.88]
[1751320661354,11.96254434,155.63,155.6,6.4248]
[1751320662359,6.4243,155.62,155.59,6.4253]
[1751320662555,5.53834434,155.63,155.57,46.88]
[1751320662956,6.4244,155.62,155.57,46.88]
[1751320663157,5.53834434,155.63,155.57,46.88]
[1751320663759,5.53834434,155.59,155.57,46.88]
[1751320664156,11.96394434,155.59,155.57,46.88]
[1751320664352,5.53834434,155.59,155.57,46.88]
[1751320664557,6.4259,155.58,155.57,46.88]
[1751320665456,5.53834434,155.59,155.57,46.88]
[1751320666162,6.4259,155.58,155.57,46.88]
[1751320666561,5.53834434,155.59,155.57,46.88]
[1751320668162,5.53834434,155.59,155.57,53.3061]
[1751320669267,5.53834434,155.62,155.57,46.88]
[1751320669462,5.53834434,155.64,155.57,46.88]
[1751320669661,11.96194434,155.64,155.57,46.88]
[1751320669858,5.53834434,155.64,155.57,46.88]
[1751320670055,5.53834434,155.66,155.57,46.88]
[1751320670254,11.96104434,155.66,155.57,46.88]
[1751320670563,11.96104434,155.66,155.58,2.1235]
[1751320670866,6.4224,155.67,155.64,6.4233]
[1751320671068,5.53834434,155.68,155.63,46.44]
[1751320671456,6.4228,155.66,155.63,52.8636]
[1751320672767,6.4228,155.66,155.64,6.4234]
[1751320673067,6.4223,155.67,155.64,6.4234]
[1751320674373,5.53834434,155.68,155.63,46.44]
[1751320675469,5.53834434,155.68,155.66,6.4226]
[1751320675871,6.4215,155.69,155.66,6.4226]
[1751320676673,11.95944434,155.7,155.67,6.4221]
[1751320676966,2.14345897,155.71,155.63,46.44]
[1751320677167,6.4209,155.71,155.68,6.4216]
[1751320677366,6.4209,155.71,155.68,52.8416]
[1751320677571,2.2188,155.75,155.68,52.8416]
[1751320677572,5.53834434,155.74,155.68,46.42]
[1751320677772,6.4201,155.72,155.69,6.4212]
[1751320679374,6.4199,155.73,155.7,6.4209]
[1751320679964,6.68304858,155.78,155.68,46.42]
[1751320679965,5.53834434,155.72,155.68,46.42]
[1751320680164,5.53834434,155.7,155.68,46.42]
[1751320680472,6.4214,155.69,155.68,46.42]
[1751320681878,5.74758214,155.76,155.68,46.42]
[1751320682074,5.53834434,155.71,155.68,46.42]
[1751320682273,5.74758214,155.76,155.68,46.42]
[1751320682474,6.4214,155.69,155.68,46.42]
[1751320682676,5.53834434,155.7,155.68,46.42]
[1751320683171,5.53834434,155.72,155.68,46.42]
[1751320683377,5.53834434,155.74,155.68,46.42]
[1751320683576,11.95794434,155.74,155.68,46.42]
[1751320683777,11.95794434,155.74,155.7,6.4207]
[1751320683978,5.53834434,155.74,155.68,46.42]
[1751320684375,5.53834434,155.74,155.7,6.4207]
[1751320684577,5.53834434,155.74,155.68,46.42]
[1751320684777,11.95784434,155.74,155.68,46.42]
[1751320685582,5.53834434,155.74,155.71,6.4203]
[1751320686080,5.53834434,155.74,155.7,6.421]
[1751320686876,6.4195,155.74,155.71,6.4205]
[1751320689784,10.11451824,155.74,155.71,6.4205]
[1751320689979,3.69501824,155.74,155.7,6.4208]
[1751320690179,3.69501824,155.74,155.68,46.42]
[1751320690386,4.528,155.78,155.68,46.42]
[1751320690586,4.528,155.78,155.71,6.4203]
[1751320690587,10.11441824,155.74,155.71,6.4203]
[1751320691486,10.11438791,155.74,155.68,46.42]
[1751320692289,10.11438791,155.74,155.71,6.4203]
[1751320693090,3.69498791,155.8,155.72,558.59498791]
[1751320693391,10.11178791,155.8,155.77,6.4177]
[1751320693594,3.69498791,155.8,155.73,48.2551]
[1751320693786,3.69498791,155.78,155.73,48.2551]
[1751320694284,3.6937395,155.74,155.68,46.18]
[1751320694484,3.6937395,155.69,155.65,2.0751]
[1751320694689,3.6937395,155.67,155.64,46.18]
[1751320695290,17.2577,155.75,155.64,46.18]
[1751320695491,3.6937395,155.68,155.64,46.18]
[1751320695692,3.6937395,155.66,155.64,46.18]
[1751320696790,6.423,155.65,155.64,46.18]
[1751320697790,3.6937395,155.66,155.6,46.18]
[1751320697985,3.6937395,155.62,155.6,52.6049]
[1751320698595,3.6937395,155.62,155.6,46.18]
[1751320699187,2.093,155.67,155.6,46.18]
[1751320699395,3.6937395,155.63,155.6,46.18]
[1751320699587,3.6937395,155.63,155.58,2.2412]
[1751320699792,3.6937395,155.63,155.59,46.18]
[1751320700388,6.4232,155.65,155.59,46.18]
[1751320700597,3.6937395,155.63,155.59,46.18]
[1751320701592,4.2408,155.67,155.59,46.18]
[1751320701793,3.6937395,155.64,155.59,46.18]
[1751320702396,10.1169395,155.65,155.61,6.4244]
[1751320702596,3.6937395,155.63,155.59,46.18]
[1751320702797,10.1178395,155.63,155.59,52.6052]
[1751320703900,10.1178395,155.63,155.6,6.4251]
[1751320704097,10.1178395,155.63,155.59,46.18]
[1751320704501,10.1178395,155.63,155.59,52.6052]
[1751320706505,6.4245,155.62,155.59,46.18]
[1751320706805,3.6937395,155.63,155.59,46.18]
[1751320707206,3.6937395,155.64,155.59,46.18]
[1751320708296,3.6937395,155.62,155.59,46.18]
[1751320708700,6.4249,155.61,155.59,46.18]
[1751320709404,3.6937395,155.62,155.59,46.18]
[1751320710003,6.4247,155.61,155.59,46.18]
[1751320710311,3.6937395,155.62,155.59,46.18]
[1751320711306,6.4249,155.61,155.59,46.18]
[1751320711510,6.4818,155.67,155.59,46.18]
[1751320711706,3.6937395,155.62,155.59,46.18]
[1751320711902,3.6937395,155.62,155.59,52.6053]
[1751320712311,6.4818,155.67,155.59,52.6053]
[1751320712513,3.6937395,155.62,155.59,52.6053]
[1751320712812,10.1182395,155.62,155.59,52.6053]
[1751320713209,6.4247,155.61,155.59,46.18]
[1751320713412,3.6937395,155.62,155.59,46.18]
[1751320714113,6.425,155.61,155.59,46.18]
[1751320715714,6.4251,155.6,155.59,46.18]
[1751320718922,3.6937395,155.62,155.59,46.18]
[1751320719415,6.425,155.61,155.59,46.18]
[1751320719823,3.6937395,155.62,155.59,46.18]
[1751320720318,6.4251,155.6,155.59,46.18]
[1751320720924,6.4251,155.6,155.58,6.4256]
[1751320722117,6.4251,155.6,155.57,52.5062]
[1751320723221,6.4251,155.6,155.58,6.4258]
[1751320725412,6.4251,155.6,155.57,52.5061]
[1751320725614,3.701507,155.6,155.57,46.08]
[1751320726622,3.70162605,155.6,155.57,46.08]
[1751320727323,3.70162605,155.62,155.57,46.08]
[1751320728327,10.12612605,155.62,155.59,6.4253]
[1751320728527,10.12612605,155.62,155.57,46.08]
[1751320728723,65.4066,155.67,155.57,46.08]
[1751320728925,52.5618,155.67,155.57,46.08]
[1751320729221,3.69980686,155.64,155.57,49.77980686]
[1751320729419,3.69980686,155.66,155.59,3.69980686]
[1751320729814,6.4233,155.65,155.62,6.424]
[1751320730015,6.4233,155.65,155.62,52.504]
[1751320730222,3.69980686,155.66,155.62,52.504]
[1751320730422,6.4237,155.64,155.62,46.08]
[1751320731222,6.4237,155.64,155.62,52.5042]
[1751320731915,3.69980686,155.66,155.62,52.5042]
[1751320731916,6.4233,155.65,155.62,52.5042]
[1751320732831,10.12260686,155.66,155.63,6.4237]
[1751320733021,3.69980686,155.66,155.62,46.08]
[1751320733327,6.4224,155.67,155.63,6.4236]
[1751320734028,6.4226,155.66,155.63,6.4236]
[1751320734223,3.69980686,155.7,155.63,3.69980686]
[1751320734426,199.27100564,155.71,155.63,3.69980686]
[1751320734626,199.27100564,155.71,155.63,5.88970686]
[1751320735525,4.3945,155.75,155.65,3.69980686]
[1751320735823,4.3945,155.75,155.66,3.69980686]
[1751320735824,3.69980686,155.74,155.66,3.69980686]
[1751320736022,3.69980686,155.76,155.68,3.69980686]
[1751320736218,6.4188,155.76,155.72,6.4198]
[1751320736426,7.89618214,155.79,155.72,46.08]
[1751320736622,3.69980686,155.77,155.72,46.08]
[1751320737329,3.69980686,155.77,155.74,6.4193]
[1751320737925,6.418,155.78,155.75,6.4189]
[1751320738128,5.84840686,155.79,155.72,46.08]
[1751320738327,3.69980686,155.77,155.72,46.08]
[1751320738525,6.4187,155.76,155.72,52.5]
[1751320738923,3.69980686,155.77,155.72,52.5]
[1751320739132,6.4192,155.75,155.72,46.08]
[1751320739728,6.4192,155.75,155.72,52.4999]
[1751320740633,3.69980686,155.77,155.72,46.08]
[1751320742236,6.4197,155.73,155.72,46.08]
[1751320742529,3.69980686,155.75,155.72,46.08]
[1751320742726,6.4197,155.73,155.72,46.08]
[1751320746333,6.4205,155.72,155.69,6.4211]
[1751320747331,3.69980686,155.75,155.68,51.87340686]
[1751320747830,3.69980686,155.75,155.69,6.4213]
[1751320748035,3.69980686,155.73,155.68,46.06]
[1751320748435,3.69980686,155.71,155.68,46.06]
[1751320748636,3.69980686,155.69,155.64,46.04]
[1751320748843,6.4223,155.67,155.64,52.4632]
[1751320749543,6.422,155.68,155.65,6.4229]
[1751320750449,3.69980686,155.71,155.64,49.73980686]
[1751320750947,6.4216,155.69,155.64,49.73980686]
[1751320751241,6.4216,155.69,155.64,46.04]
[1751320751437,6.4216,155.69,155.66,6.4224]
[1751320751642,3.69980686,155.69,155.64,46.04]
[1751320752240,3.69980686,155.67,155.64,46.04]
[1751320753145,6.4229,155.66,155.64,46.04]
[1751320755545,6.4229,155.66,155.64,52.4634]
[1751320755745,6.4229,155.66,155.64,46.04]
[1751320756846,10.12220686,155.67,155.64,46.04]
[1751320757948,10.12220686,155.67,155.64,52.4634]
[1751320758649,6.4228,155.66,155.64,46.04]
[1751320761253,6.4228,155.66,155.64,52.4634]
[1751320762649,6.423,155.65,155.64,46.04]
[1751320762845,6.423,155.65,155.6,48.1178]
[1751320762846,3.69980686,155.65,155.6,48.1178]
[1751320763448,3.69980686,155.65,155.61,6.4246]
[1751320763953,6.4236,155.64,155.61,6.4246]
[1751320765548,6.424,155.63,155.61,6.4246]
[1751320765751,6.424,155.63,155.6,46.04]
[1751320765752,3.69980686,155.63,155.6,46.04]